bitfinex-derivatives/quotes_SOLF0:USTF0_20250706
["timestamp","ask_amount","ask_price","bid_price","bid_amount"]
[1751826452168,6.5853,151.83,151.8,6.5863]
[1751826452971,6.5853,151.83,151.79,12.14376861]
[1751826453166,6.5853,151.83,151.79,8.26246926]
[1751826453367,6.5853,151.83,151.79,12.14376861]
[1751826454070,6.5853,151.83,151.8,6.5866]
[1751826454265,6.5853,151.83,151.79,5.55686861]
[1751826454668,45.26,151.86,151.81,3.88129935]
[1751826455772,6.5851,151.84,151.81,3.88129935]
[1751826455970,6.5851,151.84,151.8,10.46759935]
[1751826457079,6.5845,151.85,151.81,6.5861]
[1751826457578,6.5849,151.84,151.81,6.5861]
[1751826459277,6.5846,151.85,151.81,6.5861]
[1751826459473,6.5846,151.85,151.82,6.5856]
[1751826459775,6.5846,151.85,151.8,3.88129935]
[1751826460077,6.5846,151.85,151.79,1.67556926]
[1751826460265,6.5849,151.84,151.81,3.88129935]
[1751826460465,45.26,151.86,151.8,3.88129935]
[1751826460671,3.88129935,151.84,151.79,1.67556926]
[1751826461173,6.586,151.82,151.79,1.67556926]
[1751826462274,3.88129935,151.83,151.79,1.67556926]
[1751826463072,6.5866,151.8,151.79,1.67556926]
[1751826463268,49.14129935,151.81,151.71,2.3691]
[1751826463472,3.88129935,151.79,151.72,3.88129935]
[1751826463673,6.5875,151.78,151.74,3.88129935]
[1751826463872,45.26,151.8,151.74,3.88129935]
[1751826464174,45.26,151.8,151.7,5.02788431]
[1751826464376,3.88129935,151.79,151.72,3.88129935]
[1751826464676,51.38019935,151.8,151.74,6.5891]
[1751826464868,2.3253,151.82,151.78,3.88129935]
[1751826465273,6.5878,151.78,151.74,51.8489]
[1751826465470,6.5878,151.78,151.74,10.47019935]
[1751826465683,6.5878,151.78,151.74,3.88129935]
[1751826465877,3.88129935,151.81,151.75,6.5887]
[1751826466080,3.88129935,151.81,151.75,10.46999935]
[1751826466274,3.88129935,151.81,151.71,3.45140941]
[1751826466580,6.5873,151.79,151.75,6.5886]
[1751826466877,6.5873,151.79,151.75,10.46989935]
[1751826467878,6.5876,151.78,151.75,10.46989935]
[1751826468074,3.88129935,151.81,151.73,6.5896]
[1751826468280,3.88129935,151.81,151.73,10.47089935]
[1751826468970,6.5882,151.77,151.73,10.47089935]
[1751826469376,3.88129935,151.8,151.74,6.5891]
[1751826469576,6.5879,151.77,151.73,3.88129935]
[1751826469776,6.5879,151.77,151.73,10.47079935]
[1751826469977,3.88129935,151.78,151.71,1.14650941]
[1751826470182,49.42129935,151.78,151.7,49.42129935]
[1751826470682,45.54,151.78,151.7,49.42129935]
[1751826470882,49.42129935,151.78,151.7,49.42129935]
[1751826471583,6.5885,151.76,151.72,6.59]
[1751826472182,6.5889,151.75,151.71,6.5903]
[1751826472378,6.5889,151.75,151.71,3.88129935]
[1751826472573,49.42129935,151.78,151.71,3.88129935]
[1751826472779,6.5882,151.77,151.73,10.47069935]
[1751826473278,6.5884,151.76,151.73,10.47069935]
[1751826473981,6.5882,151.77,151.73,10.47069935]
[1751826474184,45.54,151.78,151.73,3.88129935]
[1751826474385,6.5886,151.76,151.73,3.88129935]
[1751826475685,6.5886,151.76,151.73,10.47079935]
[1751826475884,6.5886,151.76,151.7,45.54]
[1751826476085,6.5886,151.76,151.72,6.5898]
[1751826476280,6.5888,151.75,151.72,6.5898]
[1751826476483,45.54,151.78,151.68,1.67556926]
[1751826476682,3.88129935,151.76,151.7,6.5907]
[1751826476883,6.5897,151.73,151.7,6.5907]
[1751826477080,2.1938,151.77,151.72,6.5898]
[1751826477288,2.1938,151.77,151.71,3.88129935]
[1751826477688,2.1938,151.77,151.71,10.47169935]
[1751826477991,6.5891,151.75,151.71,10.47169935]
[1751826478184,2.1938,151.77,151.7,6.5908]
[1751826478390,3.88129935,151.76,151.69,3.88129935]
[1751826478582,6.09249935,151.76,151.69,3.88129935]
[1751826478787,6.09249935,151.76,151.7,6.5909]
[1751826478988,6.5895,151.74,151.69,3.88129935]
[1751826479286,6.09249935,151.76,151.7,6.5907]
[1751826479487,6.5895,151.74,151.7,6.5907]
[1751826480787,6.5895,151.74,151.71,6.5905]
[1751826481686,6.589,151.75,151.71,6.5901]
[1751826481994,6.09249935,151.76,151.71,6.5901]
[1751826482183,6.09249935,151.76,151.7,6.5908]
[1751826482792,6.09249935,151.76,151.68,1.67556926]
[1751826482989,3.88129935,151.74,151.68,1.67556926]
[1751826483189,2.2112,151.76,151.68,1.67556926]
[1751826483190,3.88129935,151.72,151.68,1.67556926]
[1751826483395,6.5914,151.69,151.68,1.67556926]
[1751826483991,45.56,151.72,151.68,1.67556926]
[1751826485892,6.5906,151.71,151.68,1.67556926]
[1751826486293,45.56,151.72,151.68,8.26706926]
[1751826486887,52.1501,151.72,151.69,6.5913]
[1751826487097,571.3312,151.76,151.68,1.67556926]
[1751826487296,3.88129935,151.74,151.68,1.67556926]
[1751826487999,571.3312,151.76,151.71,3.88129935]
[1751826488200,571.3312,151.76,151.69,3.88129935]
[1751826489201,6.5891,151.75,151.71,10.47149935]
[1751826489497,2.2112,151.76,151.71,3.88129935]
[1751826489697,6.5892,151.74,151.71,3.88129935]
[1751826490496,2.2112,151.76,151.71,3.88129935]
[1751826490497,6.5889,151.75,151.71,10.47169935]
[1751826490997,6.5893,151.74,151.71,3.88129935]
[1751826491593,47.7538,151.77,151.71,3.88129935]
[1751826492395,47.7538,151.77,151.71,10.47169935]
[1751826493199,6.5889,151.75,151.71,10.47169935]
[1751826493494,3.88129935,151.76,151.68,1.67556926]
[1751826493797,3.88129935,151.76,151.69,3.88129935]
[1751826493992,6.5892,151.74,151.69,3.88129935]
[1751826494395,6.5892,151.74,151.7,6.5909]
[1751826497497,6.5892,151.74,151.7,10.47219935]
[1751826498599,6.5897,151.73,151.7,6.5909]
[1751826498800,6.5897,151.73,151.7,10.47219935]
[1751826501402,6.5897,151.73,151.7,6.5909]
[1751826501600,6.5897,151.73,151.7,10.47219935]
[1751826503404,6.5894,151.74,151.7,10.47219935]
[1751826503596,6.5894,151.74,151.68,1.67556926]
[1751826503597,3.88129935,151.74,151.68,1.67556926]
[1751826503995,6.5905,151.72,151.68,8.26726926]
[1751826504800,6.5905,151.71,151.68,8.26726926]
[1751826505796,6.5905,151.71,151.68,12.14856861]
[1751826506305,6.5902,151.72,151.69,6.5913]
[1751826506502,3.88129935,151.74,151.68,1.67556926]
[1751826506697,6.5908,151.71,151.68,1.67556926]
[1751826507803,4.3529,151.76,151.68,1.67556926]
[1751826508000,4.31821616,151.75,151.7,3.88129935]
[1751826508205,6.5887,151.76,151.72,10.47099935]
[1751826509405,6.5887,151.76,151.73,6.5896]
[1751826509595,6.5887,151.76,151.72,3.88129935]
[1751826509801,6.5889,151.75,151.72,3.88129935]
[1751826510201,6.5889,151.75,151.72,10.47109935]
[1751826510404,52.04679935,151.81,151.72,3.88129935]
[1751826510603,17.1462656,151.8,151.72,3.88129935]
[1751826510804,4.32260482,151.79,151.72,3.88129935]
[1751826511000,4.32260482,151.79,151.71,45.96]
[1751826511001,49.84129935,151.81,151.74,3.88129935]
[1751826511209,49.84129935,151.81,151.71,45.96]
[1751826511210,4.33325747,151.8,151.71,45.96]
[1751826511506,3.88129935,151.76,151.68,1.67556926]
[1751826511706,4.33335609,151.75,151.68,1.67556926]
[1751826511905,3.8912059,151.75,151.68,1.67556926]
[1751826512106,6.5903,151.72,151.69,6.5911]
[1751826514105,45.96,151.76,151.71,6.5902]
[1751826514407,45.96,151.76,151.68,1.67556926]
[1751826514408,3.8912059,151.77,151.69,3.8912059]
[1751826514605,4.33367857,151.76,151.69,3.8912059]
[1751826514804,6.5889,151.75,151.71,6.5902]
[1751826515204,3.8912059,151.77,151.71,6.5902]
[1751826515406,4.33501101,151.76,151.71,6.5902]
[1751826515607,4.33501101,151.75,151.71,6.5902]
[1751826515803,3.8912059,151.77,151.71,6.5902]
[1751826516111,4.3350149,151.76,151.71,6.5902]
[1751826516308,3.8912059,151.77,151.71,6.5902]
[1751826516508,4.33532541,151.76,151.71,6.5902]
[1751826516708,6.5892,151.75,151.71,6.5902]
[1751826517411,6.5893,151.74,151.71,6.5902]
[1751826521216,49.8512059,151.78,151.7,6.5909]
[1751826521408,17.23887195,151.77,151.7,6.5909]
[1751826521609,4.34907654,151.76,151.7,6.5909]
[1751826521809,6.5895,151.74,151.7,6.5909]
[1751826522308,6.5904,151.72,151.68,47.63556926]
[1751826523616,6.5898,151.73,151.69,6.5911]
[1751826523815,3.8912059,151.75,151.69,6.5911]
[1751826524111,4.34885455,151.74,151.68,47.63556926]
[1751826524315,4.34885455,151.73,151.68,54.22726926]
[1751826524511,3.8912059,151.75,151.68,54.22726926]
[1751826524717,6.5904,151.72,151.68,54.22726926]
[1751826526013,6.5914,151.69,151.68,1.67556926]
[1751826527119,6.5911,151.7,151.68,1.67556926]
[1751826527320,2.3699,151.72,151.68,1.67556926]
[1751826527521,4.32659772,151.71,151.68,1.67556926]
[1751826527714,6.5912,151.7,151.68,1.67556926]
[1751826528017,2.3699,151.72,151.68,1.67556926]
[1751826528318,6.5909,151.7,151.68,1.67556926]
[1751826528920,2.3699,151.72,151.68,1.67556926]
[1751826529119,4.32569812,151.71,151.68,1.67556926]
[1751826529322,4.32502549,151.7,151.68,1.67556926]
[1751826529622,6.5914,151.69,151.68,1.67556926]
[1751826532519,10.49386931,151.69,151.61,1.14728427]
[1751826532720,192.5,151.7,151.62,6.5944]
[1751826532721,62.46199666,151.68,151.62,6.5944]
[1751826532922,4.28894139,151.67,151.62,6.5944]
[1751826533222,49.87386931,151.68,151.62,6.5942]
[1751826533421,49.87386931,151.68,151.61,3.89386931]
[1751826533617,6.593,151.66,151.61,3.89386931]
[1751826533812,6.593,151.66,151.62,6.5942]
[1751826535424,6.5931,151.65,151.62,6.5942]
[1751826536428,6.5929,151.66,151.62,6.5942]
[1751826537024,6.5923,151.67,151.63,3.89404373]
[1751826537419,6.5923,151.67,151.63,10.48774373]
[1751826539523,6.5923,151.67,151.64,6.5935]
[1751826539724,6.5919,151.68,151.64,6.5935]
[1751826541321,6.5919,151.68,151.6,10.68924373]
[1751826541322,2.3699,151.72,151.65,3.89404373]
[1751826541527,2.3699,151.72,151.67,3.89404373]
[1751826541721,46.0,151.74,151.69,3.89404373]
[1751826542024,52.08834373,151.78,151.71,3.89404373]
[1751826542926,52.08834373,151.78,151.71,10.48444373]
[1751826544128,3.89045814,151.74,151.66,4.6749]
[1751826544335,48.1943,151.78,151.65,2.3224]
[1751826544336,3.89245097,151.72,151.65,3.89245097]
[1751826544728,3.89245097,151.72,151.65,10.48525097]
[1751826545124,3.89296551,151.72,151.65,6.5928]
[1751826545325,6.5916,151.69,151.65,6.5928]
[1751826545528,3.89296551,151.72,151.65,6.5928]
[1751826546428,6.5916,151.69,151.65,6.5928]
[1751826550230,50.4631,151.73,151.66,3.89296551]
[1751826550418,4.4831,151.73,151.62,45.98]
[1751826550822,3.89296551,151.74,151.68,6.5915]
[1751826552328,6.591,151.7,151.65,3.89296551]
[1751826553329,6.591,151.7,151.62,45.98]
[1751826553529,6.591,151.7,151.67,6.5921]
[1751826554330,6.5905,151.71,151.68,6.5918]
[1751826554931,6.591,151.7,151.67,6.5921]
[1751826555732,6.5903,151.72,151.67,3.89296551]
[1751826556522,6.5903,151.72,151.69,6.5911]
[1751826557632,6.5898,151.73,151.69,6.5911]
[1751826558628,6.5893,151.74,151.67,3.89296551]
[1751826559026,6.5893,151.74,151.69,3.89296551]
[1751826559632,6.5893,151.74,151.7,6.5907]
[1751826560132,6.5898,151.73,151.7,6.5907]
[1751826562637,6.5898,151.73,151.69,10.48416551]
[1751826563736,3.89296551,151.72,151.63,3.89296551]
[1751826563935,6.09266551,151.72,151.63,3.89296551]
[1751826564535,12.24595044,151.71,151.63,3.89354989]
[1751826564735,3.89354989,151.71,151.63,3.89354989]
[1751826564937,45.92,151.7,151.62,45.92]
[1751826565133,12.24585848,151.69,151.62,45.92]
[1751826565332,3.89354989,151.69,151.62,45.92]
[1751826566041,6.5935,151.65,151.62,52.5142]
[1751826569345,6.5927,151.66,151.63,6.5938]
[1751826571445,6.5927,151.66,151.62,52.5143]
[1751826571641,6.5931,151.65,151.62,52.5143]
[1751826573650,6.5928,151.66,151.63,6.594]
[1751826575346,3.89354989,151.69,151.61,4.4947]
[1751826575550,3.89354989,151.67,151.6,3.89354989]
[1751826575744,4.28953118,151.66,151.58,3.89354989]
[1751826575946,3.89354989,151.67,151.58,3.89354989]
[1751826576143,6.5937,151.64,151.58,3.89354989]
[1751826576349,6.5937,151.64,151.6,3.89354989]
[1751826577048,45.94,151.67,151.6,3.89354989]
[1751826577549,6.593,151.66,151.62,6.5941]
[1751826578047,45.94,151.67,151.62,6.5941]
[1751826578351,6.5934,151.65,151.62,6.5941]
[1751826579155,6.5929,151.66,151.63,6.594]
[1751826579951,6.5932,151.65,151.62,6.5943]
[1751826580552,3.89354989,151.69,151.62,3.89354989]
[1751826580849,49.83354989,151.69,151.62,3.89354989]
[1751826581151,45.94,151.69,151.66,3.89354989]
[1751826581345,2.1997,151.72,151.66,3.89354989]
[1751826582253,6.5908,151.71,151.68,6.5918]
[1751826582643,6.5908,151.71,151.66,3.89354989]
[1751826583148,6.5908,151.71,151.67,6.5921]
[1751826584646,6.5908,151.71,151.68,6.5918]
[1751826585149,6.5908,151.71,151.67,6.5921]
[1751826586954,6.5908,151.71,151.68,6.5916]
[1751826588453,6.5901,151.72,151.69,6.5912]
[1751826590255,52.5298,151.73,151.7,6.5909]
[1751826590451,45.94,151.73,151.68,3.89354989]
[1751826591757,573.33354989,151.78,151.7,3.89354989]
[1751826591959,4.34358359,151.77,151.7,3.89354989]
[1751826592157,6.5888,151.75,151.71,6.5904]
[1751826592456,575.66534989,151.78,151.71,6.5904]
[1751826592658,4.34272358,151.77,151.71,6.5904]
[1751826595253,6.5894,151.74,151.69,3.89354989]
[1751826596162,6.5894,151.74,151.71,6.5905]
[1751826600462,6.5889,151.75,151.72,6.59]
[1751826601358,6.5892,151.74,151.71,10.48384989]
[1751826602955,6.5892,151.74,151.67,2.2212]
[1751826602956,197.94534989,151.78,151.69,6.591]
[1751826603162,3.89354989,151.72,151.66,49.63354989]
[1751826603564,6.5914,151.69,151.67,6.5922]
[1751826603860,3.89354989,151.72,151.67,6.5922]
[1751826604561,45.72,151.74,151.68,6.5917]
[1751826604761,4.39242669,151.73,151.68,6.5917]
[1751826604958,49.61354989,151.74,151.68,6.5917]
[1751826605166,4.39300159,151.73,151.68,6.5917]
[1751826605362,49.61354989,151.74,151.68,6.5917]
[1751826605558,6.5906,151.71,151.68,6.5917]
[1751826607466,6.5902,151.72,151.69,6.5913]
[1751826607666,49.61354989,151.76,151.7,3.89354989]
[1751826607863,4.36352341,151.75,151.7,3.89354989]
[1751826608163,49.61354989,151.76,151.7,3.89354989]
[1751826608362,4.36397812,151.75,151.68,3.89354989]
[1751826608561,4.36397812,151.74,151.68,3.89354989]
[1751826608761,49.61354989,151.76,151.68,3.89354989]
[1751826608958,6.5903,151.72,151.69,6.5912]
[1751826610169,49.61354989,151.76,151.7,3.89354989]
[1751826610367,4.36299631,151.75,151.7,3.89354989]
[1751826610562,45.72,151.76,151.7,3.89354989]
[1751826610765,45.72,151.76,151.72,3.89354989]
[1751826611166,6.5888,151.75,151.72,10.48324989]
[1751826611564,6.5888,151.75,151.72,6.5897]
[1751826612266,51.85934989,151.8,151.73,3.89354989]
[1751826612468,4.37236046,151.79,151.73,3.89354989]
[1751826612670,51.85934989,151.8,151.73,3.89354989]
[1751826612870,4.37227801,151.79,151.73,3.89354989]
[1751826613071,51.85934989,151.8,151.73,3.89354989]
[1751826613272,4.37159943,151.79,151.73,3.89354989]
[1751826613471,51.85934989,151.8,151.73,3.89354989]
[1751826613671,6.5882,151.77,151.74,6.5889]
[1751826615272,6.5883,151.76,151.74,6.5889]
[1751826616574,6.5881,151.77,151.74,6.5889]
[1751826620365,47.9658,151.8,151.73,6.5895]
[1751826620571,4.43503918,151.79,151.73,10.48304989]
[1751826620771,4.43503918,151.78,151.73,10.48304989]
[1751826620969,47.9658,151.8,151.73,10.48304989]
[1751826621170,4.43503982,151.79,151.73,10.48304989]
[1751826621373,4.43651928,151.78,151.73,10.48304989]
[1751826621570,51.85934989,151.8,151.73,10.48304989]
[1751826621776,6.5882,151.77,151.74,6.5891]
[1751826626678,6.5882,151.77,151.74,10.48264989]
[1751826628680,6.5882,151.77,151.74,6.5891]
[1751826634189,47.9658,151.8,151.75,3.89354989]
[1751826634381,4.44264036,151.79,151.77,3.89354989]
[1751826634586,45.72,151.8,151.77,3.89354989]
[1751826634892,4.44253276,151.79,151.77,10.48134989]
[1751826635190,6.5869,151.8,151.77,10.48134989]
[1751826635387,4.44234902,151.79,151.77,10.48134989]
[1751826635586,6.5869,151.8,151.77,10.48134989]
[1751826635788,4.44234902,151.79,151.77,3.89354989]
[1751826635987,6.5869,151.8,151.77,3.89354989]
[1751826636789,6.5869,151.8,151.77,10.48114989]
[1751826639093,6.5869,151.8,151.73,4.7395]
[1751826639094,3.89354989,151.8,151.72,3.89354989]
[1751826639292,3.89354989,151.78,151.71,49.59354989]
[1751826640295,6.5884,151.76,151.72,6.59]
[1751826640495,6.5884,151.76,151.71,49.59354989]
[1751826640990,6.588,151.77,151.71,49.59354989]
[1751826641197,6.588,151.77,151.73,3.89354989]
[1751826642696,6.588,151.77,151.74,6.589]
[1751826648001,6.5876,151.78,151.75,6.5887]
[1751826649102,6.5876,151.78,151.75,6.5885]
[1751826650604,6.5876,151.78,151.75,10.48204989]
[1751826652104,6.5879,151.77,151.75,3.89354989]
[1751826652305,45.7,151.79,151.75,3.89354989]
[1751826652800,45.7,151.79,151.73,3.89354989]
[1751826653004,4.44454234,151.78,151.73,3.89354989]
[1751826653305,45.7,151.79,151.73,3.89354989]
[1751826653506,4.44540895,151.78,151.73,3.89354989]
[1751826653799,6.5877,151.78,151.75,6.5888]
[1751826655100,4.45058428,151.77,151.75,6.5888]
[1751826655303,6.5877,151.78,151.75,6.5888]
[1751826655497,4.45058428,151.77,151.75,6.5888]
[1751826655703,6.5877,151.78,151.75,6.5888]
[1751826655903,4.45058428,151.77,151.75,6.5888]
[1751826656104,6.5877,151.78,151.75,6.5888]
[1751826656299,6.5877,151.78,151.75,10.48234989]
[1751826656501,52.2873,151.79,151.76,6.5883]
[1751826656697,4.47710096,151.78,151.76,6.5883]
[1751826656903,52.2873,151.79,151.76,6.5883]
[1751826657104,4.47732495,151.78,151.76,6.5883]
[1751826657300,52.2873,151.79,151.76,6.5883]
[1751826657508,4.47784835,151.78,151.76,6.5883]
[1751826657709,6.5868,151.8,151.77,3.89354989]
[1751826658010,4.4778492,151.79,151.77,3.89354989]
[1751826658210,4.4778492,151.78,151.77,10.48134989]
[1751826658611,4.4778492,151.78,151.77,6.5878]
[1751826659911,4.47746329,151.78,151.77,6.5878]
[1751826662313,12.88048003,151.78,151.68,2.2914]
[1751826662512,3.89354989,151.76,151.69,3.89354989]
[1751826662712,213.07999064,151.77,151.69,3.89354989]
[1751826662713,4.48817899,151.75,151.69,3.89354989]
[1751826662913,11.07767899,151.74,151.71,6.5901]
[1751826663113,4.48765875,151.73,151.71,6.5901]
[1751826663307,6.5895,151.74,151.71,6.5901]
[1751826663807,6.589,151.75,151.71,3.89354989]
[1751826664113,4.48664651,151.74,151.71,3.89354989]
[1751826664318,6.5884,151.76,151.71,3.89354989]
[1751826664521,4.48613401,151.75,151.71,3.89354989]
[1751826664820,195.7453,151.77,151.71,3.89354989]
[1751826665013,4.48671778,151.76,151.71,3.89354989]
[1751826665214,4.48671778,151.75,151.73,6.5894]
[1751826665411,6.5884,151.76,151.73,6.5894]
[1751826665615,4.48680806,151.75,151.73,6.5894]
[1751826665811,4.48680806,151.74,151.73,6.5894]
[1751826666017,6.5884,151.76,151.73,6.5894]
[1751826666312,4.44446134,151.75,151.73,6.5894]
[1751826666517,4.44466082,151.74,151.73,6.5894]
[1751826667216,4.44466082,151.74,151.7,3.89354989]
[1751826667417,4.6253,151.77,151.7,3.89354989]
[1751826667614,4.44470627,151.76,151.7,3.89354989]
[1751826667818,6.5895,151.74,151.7,10.48424989]
[1751826668719,6.5895,151.74,151.71,6.5905]
[1751826670726,6.5889,151.75,151.72,6.59]
[1751826675930,4.43010786,151.74,151.72,6.59]
[1751826676129,6.5889,151.75,151.72,6.59]
[1751826676330,4.42999969,151.74,151.72,6.59]
[1751826676531,6.5889,151.75,151.72,6.59]
[1751826676830,4.42965296,151.74,151.71,6.5903]
[1751826677026,6.5889,151.75,151.71,6.5903]
[1751826677227,4.42947466,151.74,151.71,6.5903]
[1751826677529,6.5889,151.75,151.71,6.5903]
[1751826677831,4.42917572,151.74,151.71,6.5903]
[1751826678025,6.5889,151.75,151.71,6.5903]
[1751826678630,8.51884989,151.77,151.69,3.89354989]
[1751826678831,17.15359088,151.76,151.69,3.89354989]
[1751826679024,4.42837624,151.75,151.69,3.89354989]
[1751826679227,4.42837624,151.74,151.69,3.89354989]
[1751826679526,11.01827624,151.73,151.69,10.48464989]
[1751826679722,6.5899,151.73,151.69,10.48464989]
[1751826680431,6.5899,151.73,151.7,6.5909]
[1751826681425,6.5894,151.74,151.69,3.89354989]
[1751826681632,6.5894,151.74,151.71,6.5905]
[1751826683037,6.5897,151.73,151.71,6.5905]
[1751826683436,6.5897,151.73,151.7,6.5909]
[1751826686438,6.5902,151.72,151.69,3.89354989]
[1751826686738,12.23262443,151.76,151.69,3.89354989]
[1751826686934,4.41744537,151.75,151.69,3.89354989]
[1751826687135,6.5901,151.72,151.69,3.89354989]
[1751826687638,6.5901,151.72,151.69,10.48474989]
[1751826689543,6.5898,151.73,151.7,6.5909]
[1751826691641,3.89354989,151.76,151.67,45.48]
[1751826691841,4.41475769,151.75,151.69,3.89354989]
[1751826692044,4.41475769,151.74,151.69,3.89354989]
[1751826692246,3.89354989,151.76,151.69,3.89354989]
[1751826692447,6.5899,151.73,151.7,6.5908]
[1751826696949,6.5899,151.73,151.71,3.11253095]
[1751826698949,6.5899,151.73,151.7,9.70333095]
[1751826702048,6.5899,151.73,151.71,3.11253095]
[1751826702348,6.5899,151.73,151.7,9.70333095]
[1751826703046,3.11253095,151.71,151.65,2.3282]
[1751826703251,3.11253095,151.69,151.64,3.11253095]
[1751826703452,6.5921,151.68,151.65,6.5929]
[1751826703748,9.70463095,151.68,151.64,3.11253095]
[1751826703947,9.70463095,151.68,151.65,3.11253095]
[1751826704648,6.5921,151.68,151.65,3.11253095]
[1751826704850,6.5915,151.69,151.63,50.32700638]
[1751826705446,7.04730638,151.71,151.65,6.5928]
[1751826705642,4.41367204,151.7,151.65,6.5928]
[1751826705851,4.41367204,151.69,151.65,6.5928]
[1751826706049,7.04730638,151.71,151.65,6.5928]
[1751826706249,4.36015919,151.7,151.65,6.5928]
[1751826706441,7.04730638,151.71,151.65,6.5928]
[1751826706748,4.36161626,151.7,151.65,6.5928]
[1751826707046,4.36161626,151.69,151.65,6.5928]
[1751826707246,6.5915,151.69,151.65,6.5928]
[1751826709753,6.5919,151.68,151.65,6.5928]
[1751826710346,6.5917,151.69,151.65,6.5928]
[1751826710856,6.5917,151.69,151.66,6.5926]
[1751826712050,7.04730638,151.71,151.64,6.5932]
[1751826712253,4.35756661,151.7,151.64,4.86700638]
[1751826712453,7.04730638,151.71,151.64,4.86700638]
[1751826712652,4.35696529,151.7,151.64,4.86700638]
[1751826712850,7.04730638,151.71,151.64,4.86700638]
[1751826713052,4.35679417,151.7,151.64,4.86700638]
[1751826713254,6.592,151.68,151.65,6.5928]
[1751826713453,6.592,151.68,151.64,4.86700638]
[1751826713754,6.592,151.68,151.64,11.46040638]
[1751826714950,6.592,151.68,151.65,6.5931]
[1751826715155,6.5917,151.69,151.64,4.86700638]
[1751826715455,6.5917,151.69,151.65,6.5929]
[1751826716356,6.5918,151.68,151.65,6.5929]
[1751826720758,6.5916,151.69,151.66,6.5926]
[1751826721357,2.1803,151.71,151.64,4.86700638]
[1751826721556,45.46,151.74,151.68,4.86700638]
[1751826721756,45.46,151.74,151.7,4.86700638]
[1751826722154,571.6802,151.77,151.72,4.86700638]
[1751826722358,571.6802,151.77,151.74,4.86700638]
[1751826722359,6.588,151.77,151.74,4.86700638]
[1751826722558,45.46,151.78,151.74,4.86700638]
[1751826722758,2.327,151.81,151.76,4.86700638]
[1751826722957,12.67589283,151.8,151.77,6.5879]
[1751826723153,4.37179447,151.79,151.77,6.5879]
[1751826723353,45.46,151.82,151.78,4.86700638]
[1751826723558,4.36995581,151.81,151.8,4.86700638]
[1751826723850,4.36997138,151.81,151.77,4.86700638]
[1751826724055,6.5863,151.81,151.77,11.45460638]
[1751826724455,45.46,151.82,151.77,4.86700638]
[1751826724653,4.3674832,151.81,151.75,11.45550638]
[1751826724858,45.46,151.82,151.75,11.45550638]
[1751826725152,4.36704138,151.81,151.75,11.45550638]
[1751826725357,45.46,151.82,151.75,11.45550638]
[1751826725664,6.5872,151.79,151.75,11.45550638]
[1751826726159,45.46,151.82,151.76,6.5883]
[1751826726959,6.5867,151.8,151.76,6.5883]
[1751826728361,6.5863,151.81,151.77,6.5878]
[1751826728764,45.46,151.82,151.77,11.45480638]
[1751826729062,4.51997864,151.81,151.77,11.45480638]
[1751826729264,45.46,151.82,151.77,11.45480638]
[1751826729460,4.51940135,151.81,151.77,11.45480638]
[1751826729668,6.5862,151.81,151.77,11.45480638]
[1751826731563,45.46,151.82,151.77,6.5878]
[1751826731764,45.46,151.82,151.77,4.86700638]
[1751826732165,6.5872,151.79,151.75,11.45560638]
[1751826733363,6.5872,151.79,151.76,6.5882]
[1751826733564,6.5867,151.8,151.76,6.5882]
[1751826735876,6.5867,151.8,151.77,6.5879]
[1751826736176,6.5867,151.8,151.75,4.86700638]
[1751826736373,6.5867,151.8,151.76,6.5882]
[1751826736578,6.5871,151.79,151.76,6.5882]
[1751826736878,6.5871,151.79,151.73,2.233]
[1751826737078,6.5871,151.79,151.75,4.86700638]
[1751826737681,6.5876,151.78,151.75,4.86700638]
[1751826737876,11.66315137,151.81,151.72,45.44]
[1751826738077,4.499473,151.8,151.72,50.30700638]
[1751826738379,6.5882,151.77,151.73,6.5896]
[1751826739178,6.5882,151.77,151.74,6.589]
[1751826740584,6.5876,151.78,151.74,11.45600638]
[1751826741279,6.5876,151.78,151.75,6.5885]
[1751826741484,6.5872,151.79,151.75,6.5885]
[1751826742484,6.5876,151.78,151.75,6.5885]
[1751826742680,2.3828,151.8,151.74,4.86700638]
[1751826743184,6.5883,151.77,151.74,4.86700638]
[1751826743578,4.86700638,151.79,151.72,50.30700638]